lending/lending_fUSD_20240604
["ID","MTS","AMOUNT","RATE_DAILY","PERIOD"]
[328547943,1717518644197,-150.5,0.0002999,15]
[328547944,1717518644207,-905.0,0.0002999,15]
[328547945,1717518644217,-1644.6648131,0.0002999,2]
[328547946,1717518644227,-6898.4792223,0.0002999,2]
[328547947,1717518644237,-31982.7823678,0.0002999,2]
[328547948,1717518644438,-212753.754432,0.0002999,2]
[328547949,1717518644459,-170.5688747,0.0002999,2]
[328547950,1717518644469,-166.50001665,0.00029996,2]
[328547951,1717518644478,-500.0,0.00029997,6]
[328547952,1717518644488,-549.18,0.00029997,6]
[328547953,1717518644499,-45335.6499224,0.00029997,2]
[328547954,1717518644514,-523.92588046,0.00029998,2]
[328547955,1717518644523,-285.85556332,0.00029998,2]
[328547956,1717518644533,-351.47180533,0.00029998,5]
[328547957,1717518644542,-753.65397879,0.00029998,2]
[328547958,1717518644551,-155.0,0.00029998,2]
[328547959,1717518644560,-411.24369396,0.00029998,2]
[328547960,1717518644570,-1033.06851701,0.00029998,2]
[328547961,1717518644579,-863.57303464,0.00029998,3]
[328547962,1717518644588,-2053.44124277,0.00029998,2]
[328547963,1717518644597,-325.60601034,0.00029998,2]
[328547964,1717518644609,-4163.8478063,0.00029998,2]
[328547965,1717518644618,-1762.91775327,0.00029998,2]
[328547966,1717518644627,-207.96127058,0.00029998,2]
[328547967,1717518644636,-2366.41570222,0.00029998,2]
[328547968,1717518644646,-620.36078575,0.00029998,2]
[328547969,1717518644656,-365.09781292,0.00029998,2]
[328547970,1717518644666,-155.3660043,0.00029998,4]
[328547971,1717518644675,-163.07491511,0.00029998,2]
[328547972,1717518644684,-155.0,0.00029998,2]
[328547973,1717518644694,-2333.31828049,0.00029998,2]
[328547974,1717518644705,-530.45664041,0.00029998,2]
[328547975,1717518644716,-156.57925175,0.00029998,2]
[328547976,1717518644725,-1061.09741622,0.00029998,3]
[328547977,1717518644735,-155.21224688,0.00029998,2]
[328547978,1717518644745,-156.12735657,0.00029998,2]
[328547979,1717518644757,-233.7079612,0.00029998,2]
[328547980,1717518644767,-262.76725722,0.00029998,2]
[328547981,1717518644776,-155.60354133,0.00029998,2]
[328547982,1717518644786,-155.37360895,0.00029998,2]
[328547983,1717518644795,-155.29079437,0.00029998,2]
[328547984,1717518644804,-264.52157603,0.00029998,2]
[328547985,1717518644814,-155.85425681,0.00029998,2]
[328547986,1717518644823,-308.3572324,0.00029998,2]
[328547987,1717518644832,-182.75003745,0.00029998,2]
[328547988,1717518644841,-1227.95940182,0.00029998,2]
[328547989,1717518644851,-305.1459001,0.00029998,2]
[328547990,1717518644860,-155.91969118,0.00029998,2]
[328547991,1717518644869,-155.76009234,0.00029998,2]
[328547992,1717518644879,-599.27979208,0.00029998,2]
[328547993,1717518644888,-208.31224876,0.00029998,2]
[328547994,1717518644897,-599.06685493,0.00029998,2]
[328547995,1717518644907,-155.8046504,0.00029998,2]
[328547996,1717518644916,-292.72818215,0.00029998,2]
[328547997,1717518644925,-157.51848632,0.00029998,2]
[328547998,1717518644935,-155.63830796,0.00029998,2]
[328547999,1717518644944,-2060.62366659,0.00029998,2]
[328548000,1717518644953,-199.15171799,0.00029998,2]
[328548001,1717518644963,-155.0,0.00029998,2]
[328548002,1717518644972,-321.96055433,0.00029998,2]
[328548003,1717518644981,-155.0,0.00029998,2]
[328548004,1717518644990,-155.0,0.00029998,2]
[328548005,1717518644999,-480.94869717,0.00029998,2]
[328548006,1717518645012,-204.83680168,0.00029998,2]
[328548007,1717518645021,-275.14712027,0.00029998,2]
[328548008,1717518645031,-202.2218218,0.00029998,2]
[328548009,1717518645041,-1215.97687186,0.00029998,2]
[328548010,1717518645051,-428.48017839,0.00029998,2]
[328548011,1717518645060,-665.1399253,0.00029998,2]
[328548012,1717518645070,-155.20367113,0.00029998,3]
[328548013,1717518645079,-622.42687039,0.00029998,2]
[328548014,1717518645089,-400.60003504,0.00029998,2]
[328548015,1717518645098,-263.30296889,0.00029998,2]
[328548016,1717518645107,-325.55682628,0.00029998,2]
[328548017,1717518645117,-250.48972718,0.00029998,2]
[328548018,1717518645126,-182.22277533,0.00029998,2]
[328548019,1717518645136,-195.06967946,0.00029998,2]
[328548020,1717518645145,-246.92247327,0.00029998,2]
[328548021,1717518645155,-155.0,0.00029998,2]
[328548022,1717518645164,-269.83407313,0.00029998,2]
[328548023,1717518645173,-1000.0,0.00029998,2]
[328548024,1717518645183,-3212.42301623,0.00029998,2]
[328548025,1717518645193,-168.75338433,0.00029998,2]
[328548026,1717518645202,-792.71578886,0.00029998,2]
[328548027,1717518645212,-471.20130278,0.00029998,2]
[328548028,1717518645221,-155.0,0.00029998,2]
[328548029,1717518645231,-4116.86116669,0.00029998,2]
[328548030,1717518645243,-156.66353359,0.00029998,2]
[328548031,1717518645256,-295.92561526,0.00029998,2]
[328548032,1717518645265,-1480.16513772,0.00029998,3]
[328548033,1717518645274,-448.2710794,0.00029998,2]
[328548034,1717518645284,-298.3262456,0.00029998,2]
[328548035,1717518645293,-200.75337891,0.00029998,2]
[328548036,1717518645303,-277.38315109,0.00029998,2]
[328548037,1717518645312,-489.1202774,0.00029998,2]
[328548038,1717518645322,-155.0,0.00029998,2]
[328548039,1717518645334,-439.5455433,0.00029998,2]
[328548040,1717518645343,-415.86251842,0.00029998,2]
[328548041,1717518645352,-534.0306169,0.00029998,2]
[328548042,1717518645362,-247.26648762,0.00029998,2]
[328548043,1717518645371,-5697.68244742,0.00029998,2]
[328548044,1717518645381,-410.72735958,0.00029998,2]
[328548045,1717518645391,-202.13084921,0.00029998,2]
[328548046,1717518645400,-287.51976629,0.00029998,2]
[328548047,1717518645409,-1246.38219162,0.00029998,2]
[328548048,1717518645420,-705.76957178,0.00029998,2]
[328548049,1717518645429,-500.0,0.00029998,6]
[328548051,1717518645439,-500.0,0.00029998,6]
[328548053,1717518645450,-632.41156355,0.00029998,2]
[328548054,1717518645459,-203.35796364,0.00029998,6]
[328548055,1717518645469,-157.68222462,0.00029998,2]
[328548056,1717518645478,-196.45931798,0.00029998,2]
[328548057,1717518645489,-159.76251273,0.00029998,2]
[328548058,1717518645498,-500.0,0.00029998,6]
[328548059,1717518645511,-656.97,0.00029998,6]
[328548060,1717518645520,-542.2859949,0.00029998,2]
[328548061,1717518645530,-559.03,0.00029998,6]
[328548062,1717518645539,-155.0,0.00029998,2]
[328548064,1717518645548,-6073.0849672,0.00029998,2]
[328548065,1717518645557,-1351.88844729,0.00029999,2]
[328548068,1717518645566,-1058.29277758,0.00029999,15]
[328548070,1717518645576,-107560.89,0.00029999,2]
[328548072,1717518645588,-429.66709518,0.00029999,2]
[328548074,1717518645598,-500.0,0.00029999,6]
[328548076,1717518645607,-500.0,0.00029999,6]
[328548079,1717518645617,-500.0,0.00029999,6]
[328548081,1717518645627,-500.0,0.00029999,6]
[328548083,1717518645636,-455.92,0.00029999,6]
[328548085,1717518645645,-500.0,0.00029999,6]
[328548086,1717518645654,-375.13231624,0.00029999,6]
[328548087,1717518645664,-500.0,0.00029999,6]
[328548088,1717518645673,-500.0,0.00029999,6]
[328548089,1717518645684,-500.0,0.00029999,6]
[328548090,1717518645693,-500.0,0.00029999,6]
[328548091,1717518645703,-500.0,0.00029999,6]
[328548092,1717518645713,-500.0,0.00029999,6]
[328548093,1717518645723,-449.47,0.00029999,6]
[328548095,1717518645732,-500.0,0.00029999,6]
[328548097,1717518645741,-500.0,0.00029999,6]
[328548099,1717518645751,-500.0,0.00029999,6]
[328548101,1717518645763,-500.0,0.00029999,6]
[328548102,1717518645773,-500.0,0.00029999,6]
[328548104,1717518645784,-500.0,0.00029999,6]
[328548106,1717518645801,-500.0,0.00029999,6]
[328548107,1717518645821,-351.267301,0.00029999,6]
[328548108,1717518645831,-656.97,0.00029999,6]
[328548109,1717518645841,-656.97,0.00029999,6]
[328548110,1717518645851,-656.97,0.00029999,6]
[328548111,1717518645861,-656.97,0.00029999,6]
[328548112,1717518645870,-656.97,0.00029999,6]
[328548113,1717518645880,-656.97,0.00029999,6]
[328548114,1717518645889,-656.97,0.00029999,6]
[328548115,1717518645902,-656.97,0.00029999,6]
[328548116,1717518645919,-656.97,0.00029999,6]
[328548117,1717518645929,-656.97,0.00029999,6]
[328548118,1717518645938,-656.97,0.00029999,6]
[328548119,1717518645947,-656.97,0.00029999,6]
[328548120,1717518645956,-656.97,0.00029999,6]
[328548121,1717518645966,-656.97,0.00029999,6]
[328548122,1717518645975,-656.97,0.00029999,6]
[328548123,1717518645985,-656.97,0.00029999,6]
[328548124,1717518645995,-657.15197085,0.00029999,6]
[328548125,1717518646008,-549.18,0.00029999,6]
[328548126,1717518646019,-549.18,0.00029999,6]
[328548128,1717518646030,-549.18,0.00029999,6]
[328548131,1717518646041,-549.18,0.00029999,6]
[328548133,1717518646052,-549.18,0.00029999,6]
[328548135,1717518646061,-549.18,0.00029999,6]
[328548137,1717518646071,-549.18,0.00029999,6]
[328548139,1717518646080,-549.18,0.00029999,6]
[328548141,1717518646090,-549.18,0.00029999,6]
[328548143,1717518646100,-549.18,0.00029999,6]
[328548145,1717518646110,-549.18,0.00029999,6]
[328548147,1717518646119,-549.18,0.00029999,6]
[328548149,1717518646128,-549.18,0.00029999,6]
[328548151,1717518646139,-549.18,0.00029999,6]
[328548153,1717518646149,-549.18,0.00029999,6]
[328548155,1717518646158,-549.39344026,0.00029999,6]
[328548157,1717518646168,-511733.17009102,0.0003,13]
[328548159,1717518646177,-222475.9277923,0.0003,2]
[328548162,1717518646198,-30286.63931483,0.0003,2]
[328548165,1717518646218,-21466.69612492,0.0003,2]
[328548168,1717518646230,-3194.69152,0.0003,2]
[328548217,1717518647339,-247.66,0.00029579,10]
[328548219,1717518647349,-500.0,0.00029589,6]
[328548221,1717518647359,-500.0,0.00029589,6]
[328548223,1717518647369,-500.0,0.00029589,6]
[328548225,1717518647379,-500.0,0.00029589,6]
[328548227,1717518647389,-284.98500015,0.00029589,6]
[328548230,1717518647401,-215.01499985,0.00029589,6]
[328548232,1717518647411,-500.0,0.00029589,6]
[328548234,1717518647420,-45.1009174,0.00029589,6]
[328548282,1717518647863,-187.9190826,0.00029589,6]
[328548284,1717518647873,-171.53666348,0.00029589,6]
[328548286,1717518647885,-28.50333652,0.00029589,6]
[328548288,1717518647894,-1264.35759293,0.0002959,2]
[328548302,1717518648018,-418.75,0.00029589,6]
[328548304,1717518648027,-500.0,0.00029589,6]
[328548307,1717518648036,-500.0,0.00029589,6]
[328548308,1717518648045,-500.0,0.00029589,6]
[328548310,1717518648055,-500.0,0.00029589,6]
[328548313,1717518648065,-500.0,0.00029589,6]
[328548315,1717518648074,-207.8460406,0.0002959,2]
[328548317,1717518648086,-296.61283458,0.0002959,2]
[328548319,1717518648096,-442.71,0.00029989,6]
[328548321,1717518648105,-1390.43431935,0.00029998,2]
[328548323,1717518648115,-1449.53550201,0.00029998,2]
[328548325,1717518648124,-208.05899404,0.00029998,2]
[328548327,1717518648135,-7637.70867484,0.0003,2]
[328548329,1717518648147,-376904.13412374,0.0003,2]
[328548332,1717518648160,-1241.84864645,0.0003,2]
[328548334,1717518648171,-8652.7160325,0.0003,2]
[328548336,1717518648183,-11811.20026128,0.0003,2]
[328548338,1717518648195,-1298.43288283,0.0003,2]
[328548341,1717518648206,-354434.33253195,0.0003,2]
[328548354,1717518648330,-307.3,9.888e-05,2]
[328548356,1717518648342,-5692.7,9.888e-05,2]
[328548358,1717518648352,-500.0,0.00029589,6]
[328548360,1717518648362,-500.0,0.00029589,6]
[328548361,1717518648371,-500.0,0.00029589,6]
[328548362,1717518648380,-500.0,0.00029589,6]
[328548363,1717518648389,-500.0,0.00029589,6]
[328548364,1717518648398,-575.9,0.00029589,6]
[328548365,1717518648407,-500.0,0.00029589,6]
[328548366,1717518648416,-500.0,0.00029589,6]
[328548367,1717518648425,-1768.81646811,0.00029693,2]
[328548368,1717518648434,-500.0,0.00029898,6]
[328548370,1717518648444,-500.0,0.00029998,6]
[328548372,1717518648454,-1639.94884299,0.00029998,2]
[328548374,1717518648465,-2248.28615142,0.00029998,2]
[328548376,1717518648475,-500.0,0.00029999,6]
[328548378,1717518648484,-500.0,0.00029999,6]
[328548380,1717518648493,-500.0,0.00029999,6]
[328548382,1717518648503,-84.94445328,0.0003,2]
[328548384,1717518648516,-6813.94966141,0.0003,2]
[328548386,1717518648527,-696.65702926,0.0003,2]
[328548389,1717518648546,-500.0,0.00029898,6]
[328548391,1717518648555,-470.26399671,0.00029998,2]
[328548393,1717518648566,-1032.51999365,0.00029998,2]
[328548395,1717518648575,-707983.71893914,0.0003,2]
[328548398,1717518648596,-500.0,0.00029999,6]
[328548400,1717518648606,-10127.55,0.0003,2]
[328548403,1717518648617,-482.0384,0.0003,2]
[328548405,1717518648628,-237468.57994696,0.0003,2]
[328548407,1717518648639,-581595.54454898,0.0003,2]
[328548409,1717518648650,-76208.99999944,0.0003,2]
[328548435,1717518648889,-2864.82500001,0.0003,2]
[328548437,1717518648900,-376.8765,0.0003,2]
[328548439,1717518648911,-404.980248,0.0003,2]
[328548441,1717518648923,-1638.59095574,0.0003,2]
[328548443,1717518648933,-3367.64984683,0.0003,2]
[328548445,1717518648945,-30672.07752227,0.0003,2]
[328548462,1717518649167,-185.50270808,0.0003,2]
[328548464,1717518649179,-547.45452592,0.0003,2]
[328548468,1717518649207,-150.0,0.00029819,2]
[328548470,1717518649218,-150.0,0.00029828,2]
[328548472,1717518649228,-500.0,0.00029998,6]
[328548475,1717518649239,-188.42,0.00029999,6]
[328548476,1717518649254,-91350.28879989,0.0003,2]
[328548480,1717518649275,-150.0,0.00029732,2]
[328548481,1717518649286,-150.0,0.000298,2]
[328548484,1717518649297,-13871.4,0.0003,2]
[328548973,1717518654580,-150.0,9.888e-05,2]
[328548985,1717518655169,-150.0,9.888e-05,2]
[328548987,1717518655877,-150.0,9.888e-05,2]
[328548988,1717518656339,-150.0,9.888e-05,2]
[328548989,1717518657082,-150.0,9.888e-05,2]
[328548990,1717518657877,-150.0,9.888e-05,2]
[328548991,1717518658448,-150.0,9.888e-05,2]
[328548992,1717518658871,-150.0,9.888e-05,2]
[328548993,1717518659470,-150.0,9.888e-05,2]
[328548994,1717518660051,-150.0,9.888e-05,2]
[328548995,1717518661081,-150.0,9.888e-05,2]
[328548996,1717518661791,-150.0,9.888e-05,2]
[328549006,1717518765778,-688.05729315,9.887e-05,2]
[328549007,1717518765798,-3392.94270685,9.888e-05,2]
[328549040,1717519488942,-338.29816075,9.87e-05,2]
[328549041,1717519488965,-291.15152196,9.871e-05,2]
[328549042,1717519488987,-155.0,9.872e-05,2]
[328549043,1717519489009,-3016.07364784,9.872e-05,2]
[328549044,1717519489031,-150.0,9.877e-05,2]
[328549045,1717519489055,-49.47666945,9.888e-05,2]
[328549046,1717519490074,-4000.0,9.888e-05,2]
[328549047,1717519490406,-4000.0,9.888e-05,2]
[328549048,1717519490824,-4000.0,9.888e-05,2]
[328549049,1717519491373,-4000.0,9.888e-05,2]
[328549050,1717519491764,-4000.0,9.888e-05,2]
[328549051,1717519492359,-4000.0,9.888e-05,2]
[328549052,1717519492799,-4000.0,9.888e-05,2]
[328549053,1717519493029,-4000.0,9.888e-05,2]
[328549054,1717519493349,-4000.0,9.888e-05,2]
[328549055,1717519493961,-4000.0,9.888e-05,2]
[328549056,1717519494289,-4000.0,9.888e-05,2]
[328549057,1717519494912,-4000.0,9.888e-05,2]
[328549058,1717519495204,-4000.0,9.888e-05,2]
[328549059,1717519497048,-4000.0,9.888e-05,2]
[328549060,1717519497749,-4000.0,9.888e-05,2]
[328549061,1717519498373,-4000.0,9.888e-05,2]
[328549062,1717519498967,-4000.0,9.888e-05,2]
[328549063,1717519499278,-4000.0,9.888e-05,2]
[328549064,1717519499824,-4000.0,9.888e-05,2]
[328549065,1717519500200,-4000.0,9.888e-05,2]
[328549066,1717519500757,-2655.14480292,9.888e-05,2]
[328549067,1717519500780,-155.54903631,9.888e-05,2]
[328549068,1717519500802,-1189.30616077,9.888e-05,2]
[328549069,1717519501126,-4000.0,9.888e-05,2]
[328549070,1717519501795,-4000.0,9.888e-05,2]
[328549071,1717519502116,-4000.0,9.888e-05,2]
[328549072,1717519502394,-4000.0,9.888e-05,2]
[328549073,1717519502711,-300.0,9.887e-05,2]
[328549074,1717519502734,-2574.59156389,9.888e-05,2]
[328549075,1717519503133,150.0,9.887e-05,2]
[328549084,1717519542094,975.40843611,9.887e-05,2]
[328549085,1717519542116,4000.0,9.887e-05,2]
[328549086,1717519542138,4000.0,9.887e-05,2]
[328549087,1717519553390,150.0,7.415e-05,2]
[328549088,1717519553416,150.0,7.415e-05,2]
[328549089,1717519553438,256.04382022,7.415e-05,2]
[328549090,1717519553471,75.09276419,7.415e-05,2]
[328549091,1717519571435,-452.96950587,9.886e-05,2]
[328549092,1717519571460,-3547.03049413,9.887e-05,2]
[328549093,1717519574456,-4000.0,9.887e-05,2]
[328549094,1717519575233,-3787.96119156,9.887e-05,2]
[328549095,1717519575254,-212.03880844,9.887e-05,2]
[328549096,1717519576349,-150.68126078,9.887e-05,2]
[328549097,1717519588502,3849.31873922,7.415e-05,2]
[328549098,1717519588534,63254.27149856,7.415e-05,2]
[328549099,1717519629725,797.19561269,7.415e-05,2]
[328549145,1717519831991,-452.96950587,0.00012456,2]
[328549146,1717519832196,-291.15152196,0.00012457,2]
[328549147,1717519832205,-156.91231772,0.00013198,2]
[328549148,1717519832217,-155.0,0.00013298,2]
[328549149,1717519832226,-500.0,0.000135,4]
[328549150,1717519832236,-1000.0,0.000136,4]
[328549151,1717519832245,-1600.0,0.000137,5]
[328549152,1717519832255,-340.9365,0.00013799,2]
[328549153,1717519832264,-2100.0,0.000138,5]
[328549154,1717519832273,-150.0,0.00013898,2]
[328549155,1717519832282,-499.99,0.00013898,2]
[328549156,1717519832292,-21755.4846,0.00013899,2]
[328549157,1717519832301,-598.65800571,0.000139,2]
[328549158,1717519832310,-804.75438092,0.000139,2]
[328549159,1717519832319,-156.91231771,0.000139,2]
[328549160,1717519832328,-2700.0,0.000139,5]
[328549161,1717519832337,-150.99,0.000139,2]
[328549163,1717519832346,-582.17079993,0.000139,2]
[328549165,1717519832355,-320.13515519,0.000139,2]
[328549167,1717519832365,-150.0,0.00013973,2]
[328549169,1717519832374,-195.04546039,0.00013989,2]
[328549171,1717519832383,-151.45,0.0001399,2]
[328549173,1717519832392,-412.72230835,0.00013998,2]
[328549175,1717519832401,-155.24195711,0.00013998,2]
[328549177,1717519832410,-179.94391801,0.00013998,2]
[328549179,1717519832420,-714.70481135,0.00013998,2]
[328549181,1717519832429,-3384.04340712,0.00013998,2]
[328549184,1717519832439,-390195.88080318,0.00013999,2]
[328549187,1717519832451,-28869.66410086,0.00013999,2]
[328549190,1717519832463,-2009.007,0.00013999,2]
[328549206,1717519832876,-13470.98204884,0.00013999,2]
[328549208,1717519832887,-1497.40968006,0.00013999,2]
[328549210,1717519832899,-8435.4000042,0.00013999,2]
[328549211,1717519832914,-681.33,0.00013999,2]
[328549212,1717519832925,-2996.16185161,0.00013999,2]
[328549213,1717519832937,-2302.90819411,0.00013999,2]
[328549214,1717519832948,-1101.00994531,0.00013999,2]
[328549215,1717519832960,-27907.49356598,0.00013999,2]
[328549238,1717519838099,-108213.01062115,0.00013999,2]
[328549240,1717519838111,-1814.56851,0.00013999,2]
[328549243,1717519838126,-1172.76967418,0.00013999,2]
[328549250,1717519838214,-7841.36830073,0.00013999,2]
[328549251,1717519838226,-92053.51758652,0.00013999,2]
[328549252,1717519838235,-54882.67074496,0.00014,2]
[328549253,1717519838265,-2294.41276261,0.00014,2]
[328549254,1717519838276,-999.41500072,0.00014,2]
[328549255,1717519838466,-15840.39542271,0.00014,2]
[328549380,1717519840716,-2862.12104921,0.00014,2]
[328549407,1717519841650,-1291.27864637,0.00014,2]
[328549467,1717519842559,150.0,7.415e-05,2]
[328549470,1717519842584,150.0,7.415e-05,2]
[328549474,1717519842608,150.0,7.415e-05,2]
[328549478,1717519842636,150.0,7.415e-05,2]
[328549481,1717519842663,150.0,7.415e-05,2]
[328549485,1717519842693,150.0,7.415e-05,2]
[328549489,1717519842720,150.0,7.415e-05,2]
[328549495,1717519842749,150.0,7.415e-05,2]
[328549498,1717519842774,150.0,7.415e-05,2]
[328549502,1717519842796,150.0,7.415e-05,2]
[328549506,1717519842819,150.0,7.415e-05,2]
[328549509,1717519842843,150.0,7.415e-05,2]
[328549513,1717519842866,1745.78606927,7.415e-05,2]
[328549551,1717519843133,-282.37254714,0.00013899,2]
[328549559,1717519843199,-727.46405286,0.00013899,2]
[328549561,1717519843208,-21092.52965165,0.00014,2]
[328549563,1717519843219,-33362.34851331,0.00014,2]
[328549566,1717519843230,-428.03097649,0.00014,2]
[328549570,1717519843265,-7153.60866,0.00014,2]
[328549578,1717519843327,-1851.88604962,0.00014,2]
[328549586,1717519843399,-732.51196725,0.00014,2]
[328549587,1717519843410,-2575.35667527,0.00014,2]
[328549588,1717519843480,-8101.82483866,0.00014,2]
[328549590,1717519843491,-1820.51498043,0.00014,2]
[328549661,1717519845955,-157.8786411,0.00013999,2]
[328549662,1717519845965,-4812.0513589,0.00014,2]
[328549663,1717519845979,-16266.34667293,0.00014,2]
[328549664,1717519845990,-9595.1640004,0.00014,2]
[328549665,1717519846002,-2273.83887988,0.00014,2]
[328549666,1717519846013,-28303.14224545,0.00014,2]
[328549667,1717519846025,-12786.51262154,0.00014,2]
[328549668,1717519846037,-14837.63058067,0.00014,2]
[328549669,1717519846048,-12903.85635625,0.00014,2]
[328549670,1717519846059,-33726.00650358,0.00014,2]
[328549671,1717519846070,-41289.98065039,0.00014,2]
[328549672,1717519846081,-72251.96496206,0.00014,2]
[328549673,1717519846092,-170218.13169002,0.00014,2]
[328549674,1717519846104,-21677.02586756,0.00014,2]
[328549675,1717519846115,-5794.09236133,0.00014,2]
[328549676,1717519846145,-1826.41727891,0.00014,2]
[328549677,1717519846160,-2863.85750453,0.00014,2]
[328549678,1717519846171,-7516.86691023,0.00014,2]
[328549679,1717519846187,-35020.13153218,0.00014,2]
[328549680,1717519846328,-9263.62799895,0.00014,2]
[328549681,1717519846340,-6470.2482353,0.00014,2]
[328549682,1717519846351,-2343.36758848,0.00014,2]
[328549736,1717520239246,-4000.0,0.00013707,2]
[328549737,1717520239812,-325.41430204,0.00013706,2]
[328549738,1717520239838,-3674.58569796,0.00013707,2]
[328549739,1717520240285,-4000.0,0.00013707,2]
[328549740,1717520262626,-164.47,0.00010892,2]
[328549741,1717520262647,-4115.08,0.00013614,2]
[328549742,1717520262667,-490.06503788,0.00013705,2]
[328549743,1717520262688,-230.38496212,0.00013705,2]
[328549744,1717520263120,-60.76655984,0.00013705,2]
[328549745,1717520263142,-241.34819951,0.00013706,2]
[328549746,1717520263165,-4697.88524065,0.00013707,2]
[328549747,1717520300110,-3098.03885397,0.0001089,2]
[328549748,1717520300132,-643.96114603,0.00010891,2]
[328549750,1717520345955,-325.5,0.00010891,2]
[328549752,1717520411178,-150.5,0.0001956,15]
[328549753,1717520411203,-184.0,0.0001956,15]
[328549754,1717520411227,-1263.0,0.0001956,15]
[328549755,1717520411251,-150.5,0.0001957,15]
[328549756,1717520411274,-150.5,0.0001957,15]
[328549757,1717520411297,-1263.0,0.0001957,15]
[328549758,1717520411320,-1678.0,0.0001957,15]
[328549759,1717520411343,-150.5,0.0001958,15]
[328549760,1717520411365,-150.5,0.0001958,15]
[328549761,1717520411389,-1263.0,0.0001958,15]
[328549762,1717520411411,-1678.0,0.0001958,15]
[328549763,1717520411440,-1678.0,0.0001959,15]
[328549764,1717520411462,-150.5,0.00019636,15]
[328549765,1717520411490,-150.5,0.00019646,15]
[328549766,1717520411528,-150.5,0.00019666,15]
[328549767,1717520411551,-150.5,0.00019676,15]
[328549768,1717520411574,-150.5,0.00019686,15]
[328549769,1717520411597,-150.5,0.00019686,15]
[328549770,1717520411620,-5138.95871003,0.0002,7]
[328549771,1717520411647,-206.38,0.00027397,10]
[328549772,1717520411674,-171.98,0.00027397,10]
[328549773,1717520411696,-300.0,0.00027397,10]
[328549774,1717520411721,-1300.0,0.000293,10]
[328549775,1717520411745,-272.18128997,0.000294,10]
[328549776,1717520517300,-884.0,0.00019696,15]
[328549777,1717520517326,-884.0,0.00019706,15]
[328549778,1717520517350,-884.0,0.00019716,15]
[328549779,1717520585636,1174.0,0.00019706,15]
[328549780,1717520586364,150.5,0.00019706,15]
[328549781,1717520586454,1174.0,0.00019696,15]
[328549782,1717520586697,619.0,0.00019706,15]
[328549783,1717520587212,1174.0,0.00019686,15]
[328549784,1717520587240,193.06,0.00019696,15]
[328549785,1717520587427,619.0,0.00019696,15]
[328549786,1717520588190,619.0,0.00019686,15]
[328549788,1717520704559,150.5,0.00019676,15]
[328549789,1717520705305,193.06,0.00019666,15]
[328549790,1717520706502,433.0,0.00019676,15]
[328549791,1717520707256,433.0,0.00019666,15]
[328549792,1717520708424,433.0,0.00019656,15]
[328549799,1717520826154,303.0,0.00019646,15]
[328549800,1717520826901,303.0,0.00019636,15]
[328549801,1717520827641,303.0,0.00019626,15]
[328549803,1717520944168,822.0,0.00019616,15]
[328549804,1717520944900,822.0,0.00019606,15]
[328549805,1717520945137,212.0,0.00019616,15]
[328549806,1717520945479,822.0,0.00019596,15]
[328549807,1717520945625,212.0,0.00019606,15]
[328549808,1717520946103,212.0,0.00019596,15]
[328549920,1717521032283,-2819.49898177,0.00011356,2]
[328549921,1717521032292,-714.70771899,0.00011357,2]
[328549922,1717521032304,-726.25927746,0.00011357,2]
[328549923,1717521032315,-925.72517819,0.00011357,2]
[328549924,1717521032324,-588.18,0.00011368,2]
[328549925,1717521032333,-1667.13,0.00012349,2]
[328549926,1717521032343,-170.7,0.00012366,2]
[328549927,1717521032353,-250.0,0.00012385,2]
[328549928,1717521032362,-496.37200293,0.00012387,2]
[328549929,1717521032378,-503.62799707,0.00012387,2]
[328549930,1717521032389,-848.23,0.00012398,2]
[328549931,1717521032398,-289.59,0.0001241,2]
[328549932,1717521032407,-430.33,0.0001241,2]
[328549933,1717521032417,-200.0,0.0001243,2]